bitfinex-derivatives/quotes_BTCF0:USTF0_20250902
["timestamp","ask_amount","ask_price","bid_price","bid_amount"]
[1756806309970,0.005,110460.0,110450.0,1.47301]
[1756806310171,0.005,110460.0,110450.0,1.76531067]
[1756806312772,0.005,110460.0,110450.0,1.40451067]
[1756806313071,0.3658,110460.0,110450.0,1.40451067]
[1756806313968,0.3658,110460.0,110450.0,1.46962482]
[1756806314465,0.3658,110460.0,110450.0,1.40451067]
[1756806314769,0.6858,110460.0,110450.0,0.58083067]
[1756806314974,0.7058,110460.0,110450.0,1.40447067]
[1756806315374,0.7058,110460.0,110450.0,1.48585608]
[1756806316074,0.7058,110460.0,110450.0,1.29585608]
[1756806321482,0.3658,110460.0,110450.0,1.29585608]
[1756806322186,0.3658,110460.0,110450.0,0.47221608]
[1756806322372,0.9658,110460.0,110450.0,0.09853]
[1756806322570,1.25810067,110460.0,110450.0,0.09853]
[1756806324281,1.25810067,110460.0,110450.0,0.08389]
[1756806325078,1.25810067,110460.0,110450.0,0.0493]
[1756806325576,1.25810067,110460.0,110450.0,0.08534]
[1756806327282,1.25810067,110460.0,110450.0,0.0493]
[1756806327488,1.25810067,110460.0,110440.0,0.08353]
[1756806327689,1.47674067,110450.0,110440.0,0.08353]
[1756806327892,1.82674067,110450.0,110440.0,0.08353]
[1756806328887,1.82874067,110450.0,110440.0,0.04749]
[1756806329287,1.82874067,110450.0,110440.0,0.08353]
[1756806329488,0.7128,110450.0,110440.0,0.37596201]
[1756806329691,1.82887201,110450.0,110440.0,0.37596201]
[1756806329990,1.82987201,110450.0,110440.0,0.37596201]
[1756806330685,2.39300314,110450.0,110430.0,0.03604]
[1756806330875,0.65323201,110440.0,110430.0,0.08353]
[1756806331079,0.38149912,110440.0,110430.0,0.08353]
[1756806331281,0.98323201,110440.0,110430.0,0.08353]
[1756806331682,0.65323201,110440.0,110430.0,0.08353]
[1756806331889,1.05361409,110440.0,110430.0,0.08353]
[1756806332085,1.07430814,110440.0,110430.0,0.08353]
[1756806332283,1.05361409,110440.0,110430.0,0.08353]
[1756806333291,1.3460461,110440.0,110420.0,0.34649992]
[1756806333494,0.65323201,110430.0,110420.0,0.69398992]
[1756806333692,0.97323201,110430.0,110420.0,0.69398992]
[1756806334295,1.48606691,110430.0,110420.0,0.69398992]
[1756806334994,1.48906691,110430.0,110420.0,0.69398992]
[1756806335390,1.49106691,110430.0,110420.0,0.69398992]
[1756806336789,1.82106691,110430.0,110420.0,0.08353]
[1756806337496,1.83106691,110430.0,110420.0,0.37596201]
[1756806338198,1.1986349,110430.0,110420.0,0.37596201]
[1756806338493,1.83106691,110430.0,110420.0,0.37596201]
[1756806340596,1.1986349,110430.0,110420.0,0.37596201]
[1756806340797,1.04738691,110430.0,110420.0,0.08353]
[1756806340999,1.04738691,110430.0,110420.0,0.37596201]
[1756806341000,1.87110691,110430.0,110420.0,0.37596201]
[1756806344403,1.49110691,110430.0,110420.0,0.37596201]
[1756806344593,1.87110691,110430.0,110420.0,0.37596201]
[1756806345207,1.1986749,110430.0,110420.0,0.37596201]
[1756806345399,1.82110691,110430.0,110420.0,0.37596201]
[1756806346002,1.49110691,110430.0,110420.0,0.37596201]
[1756806346297,1.84110691,110430.0,110420.0,0.37596201]
[1756806347499,1.1986749,110430.0,110420.0,0.37596201]
[1756806347699,1.85110691,110430.0,110420.0,0.37596201]
[1756806347998,0.3749549,110430.0,110420.0,0.37596201]
[1756806348199,0.005,110430.0,110420.0,1.43486512]
[1756806348397,0.005,110430.0,110420.0,2.53803102]
[1756806348800,0.005,110430.0,110420.0,2.62858512]
[1756806349001,0.005,110430.0,110420.0,2.53803102]
[1756806349502,0.38118208,110440.0,110420.0,2.53803102]
[1756806349705,0.38118208,110440.0,110430.0,0.37520201]
[1756806350310,0.38118208,110440.0,110430.0,0.08277]
[1756806350510,0.38118208,110440.0,110430.0,0.37520201]
[1756806350699,1.2870461,110440.0,110430.0,0.08277]
[1756806350900,1.5370461,110440.0,110430.0,0.02413]
[1756806351193,0.95218208,110440.0,110430.0,0.02413]
[1756806351505,0.002,110430.0,110420.0,0.37520201]
[1756806351705,0.65523201,110430.0,110420.0,0.37520201]
[1756806351906,1.85895201,110430.0,110420.0,0.37520201]
[1756806352106,1.47695201,110430.0,110420.0,0.37520201]
[1756806352305,1.47695201,110430.0,110420.0,0.08277]
[1756806352506,1.47695201,110430.0,110410.0,0.32650201]
[1756806352507,1.81695201,110430.0,110410.0,0.32650201]
[1756806352701,1.52452,110430.0,110420.0,0.065117]
[1756806352900,1.52652,110430.0,110420.0,0.113817]
[1756806353104,1.51852,110430.0,110420.0,0.147887]
[1756806353823,1.81095201,110430.0,110420.0,0.44031901]
[1756806354600,1.81195201,110430.0,110420.0,0.44031901]
[1756806355210,1.81295201,110430.0,110420.0,0.44131901]
[1756806355407,1.81495201,110430.0,110420.0,0.44231901]
[1756806355909,1.81495201,110430.0,110420.0,0.37720201]
[1756806356610,1.81495201,110430.0,110420.0,0.002]
[1756806357298,2.06495201,110430.0,110420.0,0.002]
[1756806359313,1.81495201,110430.0,110420.0,0.002]
[1756806360113,1.52252,110430.0,110420.0,0.002]
[1756806360311,1.81495201,110430.0,110420.0,0.002]
[1756806360507,2.06495201,110430.0,110420.0,0.002]
[1756806363914,1.24123201,110430.0,110420.0,0.002]
[1756806364313,2.06495201,110430.0,110420.0,0.02613]
[1756806364512,2.06495201,110430.0,110420.0,0.0507]
[1756806367116,2.06495201,110430.0,110420.0,0.08478]
[1756806367618,2.06495201,110430.0,110420.0,0.0507]
[1756806369514,2.06495201,110430.0,110420.0,0.002]
[1756806369716,1.81495201,110430.0,110420.0,0.002]
[1756806370121,1.83574324,110430.0,110420.0,0.002]
[1756806371213,1.81495201,110430.0,110420.0,0.002]
[1756806372921,2.17575201,110430.0,110420.0,0.002]
[1756806374820,2.71818402,110430.0,110410.0,0.065117]
[1756806375018,0.94566402,110420.0,110400.0,0.45277901]
[1756806375215,1.47691201,110410.0,110400.0,0.45277901]
[1756806376129,1.47691201,110410.0,110400.0,0.38766201]
[1756806377722,1.47891201,110410.0,110400.0,0.38766201]
[1756806378222,1.48091201,110410.0,110400.0,0.38766201]
[1756806380721,1.48091201,110410.0,110400.0,0.45277901]
[1756806381528,1.18848,110410.0,110400.0,0.45277901]
[1756806381743,0.3648,110410.0,110400.0,0.68009402]
[1756806382021,0.3648,110410.0,110400.0,1.32521102]
[1756806382022,0.004,110410.0,110400.0,1.32521102]
[1756806382219,0.004,110410.0,110400.0,1.91332603]
[1756806382418,0.004,110410.0,110400.0,2.08528194]
[1756806383422,0.004,110410.0,110400.0,2.82757653]
[1756806383728,0.002,110410.0,110400.0,2.82757653]
[1756806383924,0.003,110410.0,110400.0,2.82757653]
[1756806384124,0.003,110410.0,110400.0,2.90896194]
[1756806384324,0.002,110410.0,110400.0,2.90896194]
[1756806386532,0.001,110410.0,110400.0,2.82757653]
[1756806386722,0.001,110410.0,110400.0,3.00370603]
[1756806386926,0.001,110410.0,110400.0,3.06884802]
[1756806387229,0.38076195,110430.0,110420.0,0.04647]
[1756806387428,0.401584,110430.0,110420.0,0.66541402]
[1756806388024,0.401584,110430.0,110420.0,0.37298201]
[1756806388224,0.69401601,110430.0,110420.0,0.33890201]
[1756806388424,0.69801601,110430.0,110420.0,0.33890201]
[1756806388827,0.69801601,110430.0,110420.0,0.08055]
[1756806389026,0.405584,110430.0,110420.0,0.37298201]
[1756806389222,0.69801601,110430.0,110420.0,0.37298201]
[1756806390330,0.70101601,110430.0,110420.0,0.37398201]
[1756806390730,1.32101601,110430.0,110420.0,0.31682201]
[1756806391138,1.32101601,110430.0,110420.0,0.37398201]
[1756806391435,1.232184,110430.0,110420.0,0.37399784]
[1756806391636,1.21136195,110430.0,110420.0,0.37399784]
[1756806392838,1.21132195,110430.0,110420.0,0.37399784]
[1756806393529,1.21132195,110430.0,110420.0,0.43913983]
[1756806394630,0.38776195,110430.0,110420.0,0.43913983]
[1756806394940,0.02696195,110430.0,110420.0,0.77542533]
[1756806395442,0.02696195,110430.0,110420.0,0.80542533]
[1756806395643,0.007,110430.0,110420.0,0.80542533]
[1756806395938,0.007,110430.0,110420.0,1.62894533]
[1756806396140,0.007,110430.0,110420.0,1.87894533]
[1756806397141,0.007,110430.0,110420.0,1.897385]
[1756806398940,0.007,110430.0,110420.0,1.90642577]
[1756806399542,0.007,110430.0,110420.0,1.897385]
[1756806399840,0.007,110430.0,110420.0,1.297345]
[1756806400036,0.007,110430.0,110420.0,0.473865]
[1756806400236,0.3678,110430.0,110420.0,0.18141716]
[1756806400437,0.9478,110430.0,110420.0,0.09998967]
[1756806400637,0.6178,110430.0,110420.0,0.09998967]
[1756806401036,0.6178,110430.0,110420.0,0.18141716]
[1756806401237,0.6178,110430.0,110420.0,0.16509853]
[1756806402039,0.6178,110430.0,110420.0,0.16511549]
[1756806404537,1.44124,110430.0,110420.0,0.16511549]
[1756806406049,1.19124,110430.0,110420.0,0.13169549]
[1756806406345,1.19124,110430.0,110420.0,0.06656967]
[1756806406547,0.3678,110430.0,110420.0,0.39636751]
[1756806407052,0.3678,110430.0,110420.0,0.46149333]
[1756806407249,0.3678,110430.0,110420.0,0.82149333]
[1756806408046,0.3678,110430.0,110420.0,0.46149333]
[1756806410655,0.3678,110430.0,110420.0,0.04268967]
[1756806410656,0.91024784,110430.0,110420.0,0.04268967]
[1756806410952,1.23024784,110430.0,110420.0,0.01943967]
[1756806411152,1.22024784,110430.0,110420.0,0.01943967]
[1756806411348,1.24107785,110430.0,110420.0,0.01943967]
[1756806412156,0.9278,110430.0,110420.0,0.04268967]
[1756806412354,0.9278,110430.0,110420.0,0.10391967]
[1756806413755,0.9278,110430.0,110420.0,0.01943967]
[1756806414456,0.9278,110430.0,110420.0,0.04268967]
[1756806415152,1.22024784,110430.0,110420.0,0.001]
[1756806415356,1.24107114,110430.0,110420.0,0.001]
[1756806415553,1.22024784,110430.0,110420.0,0.001]
[1756806415757,1.24107142,110430.0,110420.0,0.001]
[1756806417157,2.06455142,110430.0,110420.0,0.001]
[1756806417359,2.04372784,110430.0,110420.0,0.001]
[1756806419158,1.79372784,110430.0,110420.0,0.001]
[1756806420454,1.81454179,110430.0,110420.0,0.001]
[1756806421457,2.10698724,110430.0,110420.0,0.001]
[1756806423457,2.10698724,110430.0,110420.0,0.02425]
[1756806423658,1.50128,110430.0,110420.0,0.04813]
[1756806423866,1.79372784,110430.0,110420.0,0.04813]
[1756806424660,1.79404784,110430.0,110420.0,0.08548]
[1756806425261,0.99105106,110430.0,110420.0,0.04813]
[1756806425457,1.81485106,110430.0,110420.0,0.04813]
[1756806426165,1.81485106,110430.0,110420.0,0.02425]
[1756806426471,1.81485106,110430.0,110420.0,0.001]
[1756806426865,1.52240322,110430.0,110420.0,0.001]
[1756806427065,1.81485106,110430.0,110420.0,0.001]
[1756806429179,1.81485106,110430.0,110420.0,0.02404]
[1756806430170,1.81485106,110430.0,110420.0,0.0475]
[1756806430370,1.81485106,110430.0,110420.0,0.08252]
[1756806431680,1.52240322,110430.0,110420.0,0.08252]
[1756806431973,1.81485106,110430.0,110420.0,0.0475]
[1756806432165,1.79404784,110430.0,110420.0,0.0475]
[1756806433682,1.81482468,110430.0,110420.0,0.0475]
[1756806434282,1.52217684,110430.0,110420.0,0.08252]
[1756806434482,0.38857684,110430.0,110420.0,0.08252]
[1756806434677,1.50462468,110430.0,110420.0,0.08252]
[1756806437382,1.87462468,110430.0,110420.0,0.08252]
[1756806437684,1.05102468,110430.0,110420.0,0.08252]
[1756806437879,1.87462468,110430.0,110420.0,0.08252]
[1756806443684,1.85384784,110430.0,110420.0,0.08252]
[1756806444987,1.5614,110430.0,110420.0,0.08252]
[1756806446487,2.16708046,110430.0,110420.0,0.001]
[1756806446688,1.87463262,110430.0,110420.0,0.001]
[1756806447392,2.16708046,110430.0,110420.0,0.001]
[1756806447588,2.41708046,110430.0,110420.0,0.001]
[1756806450876,1.83218478,110430.0,110420.0,0.001]
[1756806451082,2.41708046,110430.0,110420.0,0.001]
[1756806452184,1.59348046,110430.0,110420.0,0.001]
[1756806452586,2.41704046,110430.0,110420.0,0.001]
[1756806453492,2.41735458,110430.0,110420.0,0.001]
[1756806458092,1.87478968,110430.0,110420.0,0.08394]
[1756806458794,1.87478968,110430.0,110420.0,0.02503]
[1756806459783,1.87478968,110430.0,110420.0,0.001]
[1756806459989,1.87478968,110430.0,110420.0,0.02503]
[1756806460996,1.87478968,110430.0,110420.0,0.001]
[1756806461495,1.87478968,110430.0,110420.0,0.02503]
[1756806461796,1.87478968,110430.0,110420.0,0.04784]
[1756806462191,2.23558968,110430.0,110420.0,0.04784]
[1756806464893,2.23554968,110430.0,110420.0,0.08394]
[1756806465097,1.92216,110430.0,110420.0,0.3765449]
[1756806465298,1.3912049,110430.0,110420.0,0.3765449]
[1756806465496,1.9347649,110430.0,110420.0,0.3765449]
[1756806466200,2.1947649,110430.0,110420.0,0.3765449]
[1756806466799,1.90216,110430.0,110420.0,0.3765449]
[1756806467003,2.2247649,110430.0,110420.0,0.3765449]
[1756806468002,2.2247649,110430.0,110420.0,0.08394]
[1756806468203,2.2247649,110430.0,110420.0,0.3765449]
[1756806469500,2.2247649,110430.0,110420.0,0.001]
[1756806469701,2.78814809,110430.0,110420.0,0.001]
[1756806477910,1.96458809,110430.0,110420.0,0.04784]
[1756806478109,2.78814809,110430.0,110420.0,0.04784]
[1756806478311,2.78814809,110430.0,110420.0,0.02503]
[1756806478511,2.78814809,110430.0,110420.0,0.001]
[1756806479212,2.53814809,110430.0,110420.0,0.001]
[1756806483216,2.53814809,110430.0,110420.0,0.04784]
[1756806483713,2.53814809,110430.0,110420.0,0.02503]
[1756806483917,2.53814809,110430.0,110420.0,0.001]
[1756806484618,2.53814809,110430.0,110420.0,0.02503]
[1756806486119,2.53814809,110430.0,110420.0,0.04784]
[1756806486318,2.24554319,110430.0,110420.0,0.29784]
[1756806486518,2.24554319,110430.0,110420.0,0.6261349]
[1756806486818,2.24554319,110430.0,110420.0,0.33353]
[1756806488721,2.24554319,110430.0,110420.0,0.29784]
[1756806489421,2.24554319,110430.0,110420.0,0.04784]
[1756806492021,2.24554319,110430.0,110420.0,0.08353]
[1756806495716,1.42198319,110430.0,110420.0,0.08353]
[1756806495918,2.24550319,110430.0,110420.0,0.08353]
[1756806497122,2.24550319,110430.0,110420.0,0.04784]
[1756806498619,2.24550319,110430.0,110420.0,0.08353]
[1756806499720,1.95289829,110430.0,110420.0,0.08353]
[1756806499919,2.24550319,110430.0,110420.0,0.08353]
[1756806500223,2.24546319,110430.0,110420.0,0.08353]
[1756806501417,1.1086,110430.0,110420.0,0.9187398]
[1756806501618,1.93208,110430.0,110420.0,0.9187398]
[1756806501824,2.2246849,110430.0,110420.0,0.08353]
[1756806502024,2.24569211,110430.0,110420.0,0.08353]
[1756806503831,2.24569211,110430.0,110420.0,0.04784]
[1756806504225,2.24569211,110430.0,110420.0,0.08353]
[1756806505425,2.24569211,110430.0,110420.0,0.04784]
[1756806506432,2.24569211,110430.0,110420.0,0.001]
[1756806506633,2.53829701,110430.0,110420.0,0.001]
[1756806506832,2.24569211,110430.0,110420.0,0.001]
[1756806510836,2.78829701,110430.0,110420.0,0.001]
[1756806515645,2.78837279,110430.0,110420.0,0.001]
[1756806516142,1.96489279,110430.0,110420.0,0.001]
[1756806516343,2.78829279,110430.0,110420.0,0.001]
[1756806518445,2.53829279,110430.0,110420.0,0.001]
[1756806521043,2.55867494,110430.0,110420.0,0.001]
[1756806533755,2.55863494,110430.0,110420.0,0.001]
[1756806534150,2.55863494,110430.0,110420.0,0.02358]
[1756806538358,2.55863494,110430.0,110420.0,0.001]
[1756806541661,1.73527494,110430.0,110420.0,0.001]
[1756806541863,2.55855494,110430.0,110420.0,0.04708]
[1756806542961,2.55855494,110430.0,110420.0,0.001]
[1756806548259,1.73527494,110430.0,110420.0,0.04904]
[1756806548566,1.73527494,110430.0,110420.0,0.0842]
[1756806548567,2.26587215,110430.0,110420.0,0.0842]
[1756806548762,1.73527494,110430.0,110420.0,0.0842]
[1756806549067,2.55851494,110430.0,110420.0,0.0842]
[1756806550061,2.55851494,110430.0,110420.0,0.04904]
[1756806552659,2.55851494,110430.0,110420.0,0.0842]
[1756806553664,1.73527494,110430.0,110420.0,0.0842]
[1756806553865,1.14998936,110430.0,110420.0,0.3342]
[1756806554064,1.97322936,110430.0,110420.0,0.3342]
[1756806555070,1.14998936,110430.0,110420.0,0.3342]
[1756806555262,1.97322936,110430.0,110420.0,0.3342]
[1756806557662,1.97322936,110430.0,110420.0,0.62684279]
[1756806557663,1.97318936,110430.0,110420.0,0.62684279]
[1756806557866,1.95218215,110430.0,110420.0,0.62684279]
[1756806558366,1.95218215,110430.0,110420.0,0.3342]
[1756806558569,1.12898215,110430.0,110420.0,0.3342]
[1756806558766,0.76818215,110430.0,110420.0,0.62684279]
[1756806558965,0.38818215,110430.0,110420.0,0.62684279]
[1756806559166,0.38818215,110430.0,110420.0,1.06827028]
[1756806559365,0.38818215,110430.0,110420.0,0.98684279]
[1756806559572,0.38818215,110430.0,110420.0,1.05194505]
[1756806560067,0.38518215,110430.0,110420.0,1.05094505]
[1756806560467,0.38318215,110430.0,110420.0,1.05094505]
[1756806560773,0.38518215,110430.0,110420.0,1.05094505]
[1756806563774,0.38518215,110430.0,110420.0,0.98584279]
[1756806565371,0.004,110430.0,110420.0,1.74826392]
[1756806565571,0.3805856,110470.0,110460.0,0.04804]
[1756806565777,1.55451137,110470.0,110460.0,0.37584279]
[1756806566371,1.5336256,110470.0,110460.0,0.0832]
[1756806566572,1.5336256,110470.0,110460.0,0.37584279]
[1756806566777,1.54250913,110470.0,110460.0,0.37584279]
[1756806567970,1.55050913,110470.0,110460.0,0.37684279]
[1756806569778,1.54738913,110470.0,110460.0,0.37584279]
[1756806570376,0.72446913,110470.0,110460.0,0.37584279]
[1756806570678,1.54738913,110470.0,110460.0,0.37584279]
[1756806573381,1.54738913,110470.0,110460.0,0.0832]
[1756806573781,1.54738913,110470.0,110460.0,0.37584279]
[1756806574779,2.09003192,110470.0,110450.0,0.04804]
[1756806574976,0.3608,110460.0,110450.0,0.04804]
[1756806575483,0.3608,110460.0,110450.0,0.0832]
[1756806576682,0.3618,110460.0,110450.0,0.0832]
[1756806577181,0.7218,110460.0,110450.0,0.0832]
[1756806577575,1.01515168,110460.0,110450.0,0.37555168]
[1756806582186,1.55750336,110460.0,110430.0,0.10423945]
[1756806582387,0.3608,110440.0,110430.0,0.39659113]
[1756806583289,0.3608,110440.0,110430.0,0.39859113]
[1756806583587,0.3608,110440.0,110430.0,0.40059113]
[1756806584683,0.65315168,110440.0,110430.0,0.10623945]
[1756806584885,1.68930336,110440.0,110430.0,0.002]
[1756806586074,1.96218795,110440.0,110420.0,0.01842414]
[1756806586279,1.76822336,110430.0,110400.0,0.39290168]
[1756806586476,0.3608,110410.0,110400.0,0.39290168]
[1756806586783,1.19245181,110410.0,110400.0,0.39290168]
[1756806587190,1.48480349,110410.0,110400.0,0.39290168]
[1756806587489,1.48480349,110410.0,110400.0,0.39490168]
[1756806588485,1.48480349,110410.0,110400.0,0.39290168]
[1756806588680,1.48880349,110410.0,110400.0,0.39290168]
[1756806588987,1.48884349,110410.0,110400.0,0.39290168]
[1756806589188,1.48884349,110410.0,110400.0,0.10055]
[1756806589379,1.48884349,110410.0,110400.0,0.39490168]
[1756806589574,1.19649181,110410.0,110400.0,0.39490168]
[1756806590084,1.19949181,110410.0,110400.0,0.39290168]
[1756806590389,1.49184349,110410.0,110400.0,0.39290168]
[1756806591876,0.66908349,110410.0,110400.0,0.39290168]
[1756806592183,1.49192349,110410.0,110400.0,0.39290168]
[1756806595489,1.85272349,110410.0,110400.0,0.10055]
[1756806595689,1.85272349,110410.0,110400.0,0.04841]
[1756806595881,2.20272349,110410.0,110400.0,0.04841]
[1756806596087,2.45272349,110410.0,110390.0,0.37796168]
[1756806596285,0.65315168,110400.0,110390.0,0.37796168]
[1756806597793,0.65615168,110400.0,110390.0,0.37796168]
[1756806598993,0.65815168,110400.0,110390.0,0.37796168]
[1756806601199,1.48107168,110400.0,110390.0,0.37796168]
[1756806602497,1.81107168,110400.0,110390.0,0.08561]
[1756806602793,1.81107168,110400.0,110390.0,0.34076168]
[1756806602999,0.98815168,110400.0,110390.0,0.37796168]
[1756806603394,1.81107168,110400.0,110390.0,0.37796168]
[1756806603699,1.81107168,110400.0,110390.0,0.08561]
[1756806603998,0.98815168,110400.0,110390.0,0.08561]
[1756806604393,1.81111168,110400.0,110390.0,0.08561]
[1756806604588,1.81111168,110400.0,110390.0,0.37796168]
[1756806610404,0.98815168,110400.0,110390.0,0.37796168]
[1756806610601,1.81111168,110400.0,110390.0,0.37796168]
[1756806616909,1.83212339,110400.0,110390.0,0.37796168]
[1756806619012,1.00916339,110400.0,110390.0,0.37796168]
[1756806619217,1.83212339,110400.0,110390.0,0.37796168]
[1756806619512,1.83212339,110400.0,110390.0,0.04841]
[1756806619720,2.37447507,110400.0,110380.0,0.08265]
[1756806620019,0.65315168,110390.0,110380.0,0.37500168]
[1756806620203,0.67416339,110390.0,110380.0,0.37500168]
[1756806621407,0.67516339,110390.0,110380.0,0.37500168]
[1756806622518,0.67616339,110390.0,110380.0,0.08265]
[1756806622719,0.67616339,110390.0,110380.0,0.37500168]
[1756806623819,0.65515168,110390.0,110380.0,0.37500168]
[1756806624412,0.65515168,110390.0,110380.0,0.08265]
[1756806624613,0.65515168,110390.0,110380.0,0.37500168]
[1756806625220,0.3628,110390.0,110380.0,0.37500168]
[1756806625419,0.65515168,110390.0,110380.0,0.37500168]
[1756806628620,0.65515168,110390.0,110380.0,0.08265]
[1756806628919,0.65515168,110390.0,110380.0,0.37500168]
[1756806631421,0.3628,110390.0,110380.0,0.37500168]
[1756806631724,0.65515168,110390.0,110380.0,0.37500168]
[1756806633222,0.65515168,110390.0,110380.0,0.08265]
[1756806633412,0.65515168,110390.0,110380.0,0.37500168]
[1756806634317,0.65515168,110390.0,110380.0,0.43996872]
[1756806634713,0.65515168,110390.0,110380.0,0.37500168]
[1756806638125,0.96515168,110390.0,110380.0,0.37500168]
[1756806638432,0.96515168,110390.0,110380.0,0.43996872]
[1756806639521,0.6728,110390.0,110380.0,0.14761704]
[1756806642425,0.96551707,110390.0,110380.0,0.14761704]
[1756806643621,0.3628,110390.0,110380.0,0.14761704]
[1756806643829,0.3628,110390.0,110380.0,1.07033411]
[1756806644122,0.3628,110390.0,110380.0,0.62536707]
[1756806648324,0.3628,110390.0,110380.0,0.70679456]
[1756806650423,0.3628,110390.0,110380.0,1.02679456]
[1756806650723,0.002,110390.0,110380.0,1.78655834]
[1756806650926,0.002,110390.0,110380.0,1.86798583]
[1756806651320,0.002,110390.0,110380.0,1.78655834]
[1756806651927,0.002,110390.0,110380.0,1.86798583]
[1756806652129,0.001,110390.0,110380.0,1.95857273]
[1756806652329,0.3608,110400.0,110380.0,1.84217524]
[1756806652629,0.3608,110400.0,110390.0,0.4412945]
[1756806653629,1.13433181,110410.0,110400.0,0.01371]
[1756806653828,1.13433181,110410.0,110400.0,0.38983707]
[1756806655929,1.13733181,110410.0,110400.0,0.38983707]
[1756806656128,0.37273181,110410.0,110400.0,0.38983707]
[1756806656334,0.37473181,110410.0,110400.0,0.38983707]
[1756806656536,0.005,110410.0,110400.0,1.11683761]
[1756806656731,0.005,110410.0,110400.0,2.57576068]
[1756806657035,0.005,110410.0,110400.0,2.64092811]
[1756806657235,0.005,110410.0,110400.0,2.64088811]
[1756806658327,0.004,110410.0,110400.0,2.64088811]
[1756806658731,0.001,110410.0,110400.0,2.64088811]
[1756806659137,0.07099452,110420.0,110400.0,2.64088811]
[1756806659332,1.21251138,110430.0,110410.0,0.73692707]
[1756806659630,0.02000435,110430.0,110420.0,1.19876707]
[1756806659836,0.02000435,110430.0,110420.0,1.6439345]
[1756806661434,0.02000435,110430.0,110420.0,0.75612707]
[1756806661636,0.02000435,110430.0,110420.0,1.57872707]
[1756806661834,0.02100435,110430.0,110420.0,1.57872707]
[1756806662135,0.02200435,110430.0,110420.0,1.57872707]
[1756806662536,0.02100435,110430.0,110420.0,1.57872707]
[1756806663038,0.02000435,110430.0,110420.0,1.57872707]
[1756806663741,0.02000435,110430.0,110420.0,2.0952486]
[1756806664038,0.3805856,110470.0,110460.0,0.04906]
[1756806664230,0.5205856,110470.0,110460.0,0.37612707]
[1756806664431,0.52954457,110470.0,110460.0,0.37612707]
[1756806664637,0.38954457,110470.0,110460.0,0.37612707]
[1756806665033,0.3865856,110470.0,110460.0,0.37712707]
[1756806665233,0.0297856,110470.0,110460.0,0.37812707]
[1756806665734,0.0267856,110470.0,110460.0,1.56044707]
[1756806665934,0.0257856,110470.0,110460.0,1.19856707]
[1756806669028,0.006,110470.0,110460.0,1.19856707]
[1756806670234,0.003,110470.0,110460.0,1.19856707]
[1756806670439,0.004,110470.0,110460.0,1.19856707]
[1756806670634,0.004,110470.0,110460.0,1.19844707]
[1756806670933,0.3618,110470.0,110460.0,0.08341]
[1756806671138,1.26551707,110470.0,110460.0,0.04906]
[1756806671738,1.26551707,110470.0,110460.0,0.08623]
[1756806672430,0.9728,110470.0,110460.0,0.08623]
[1756806672633,1.26551707,110470.0,110460.0,0.08623]
[1756806675134,0.9728,110470.0,110460.0,0.08623]
[1756806676243,0.6128,110470.0,110460.0,0.08623]
[1756806678538,0.252,110470.0,110460.0,0.08623]
[1756806678739,0.6128,110470.0,110460.0,0.08623]
[1756806679341,0.90551707,110470.0,110460.0,0.08623]
[1756806680344,1.24551707,110470.0,110450.0,0.34359707]
[1756806680548,0.99551707,110470.0,110450.0,0.39154707]
[1756806680746,0.99551707,110470.0,110460.0,0.03717]
[1756806681044,0.99551707,110470.0,110460.0,0.08512]
[1756806681246,1.26594142,110470.0,110450.0,0.01371]
[1756806681447,1.47563707,110460.0,110440.0,0.10357502]
[1756806681643,1.83563707,110460.0,110440.0,0.15357502]
[1756806681846,1.47563707,110460.0,110440.0,0.15357502]
[1756806682048,0.3608,110450.0,110440.0,0.15357502]
[1756806682638,0.3608,110450.0,110440.0,0.15557502]
[1756806683047,0.3608,110450.0,110440.0,0.10357502]
[1756806683252,1.21651707,110450.0,110430.0,0.08512]
[1756806683453,0.29271707,110440.0,110430.0,0.08512]
[1756806683644,0.65351707,110440.0,110430.0,0.08512]
[1756806684544,0.3608,110440.0,110430.0,0.08512]
[1756806685051,0.3628,110440.0,110430.0,0.08512]
[1756806685549,0.65551707,110440.0,110430.0,0.08512]
[1756806688448,0.66454714,110440.0,110430.0,0.08512]
[1756806689048,0.37183007,110440.0,110430.0,0.08512]
[1756806690650,1.84666714,110440.0,110430.0,0.04795]
[1756806690956,2.11719526,110440.0,110410.0,0.92551084]
[1756806691153,0.65351707,110420.0,110410.0,0.15339084]
[1756806691343,1.02351707,110420.0,110410.0,0.06622084]
[1756806691545,0.7308,110420.0,110410.0,0.06622084]
[1756806691747,0.3608,110420.0,110410.0,0.10339084]
[1756806692052,0.43301157,110420.0,110410.0,0.10339084]
[1756806692854,0.43301157,110420.0,110410.0,0.10539084]
[1756806693553,0.07221157,110420.0,110410.0,1.00810791]
[1756806693750,0.3608,110430.0,110420.0,0.03717]
[1756806693956,1.19199007,110440.0,110420.0,0.34066707]
[1756806694255,1.19199007,110440.0,110430.0,0.37783707]
[1756806694555,1.19199007,110440.0,110430.0,0.08512]
[1756806695355,1.19299007,110440.0,110430.0,0.08512]
[1756806695757,1.19399007,110440.0,110430.0,0.08512]
[1756806696756,0.37183007,110440.0,110430.0,0.08512]
[1756806696953,0.37183007,110440.0,110430.0,0.37783707]
[1756806697156,0.3628,110440.0,110430.0,0.37783707]
[1756806697554,0.65551707,110440.0,110420.0,0.37547707]
[1756806698558,0.3628,110440.0,110430.0,0.08276]
[1756806698759,0.3618,110440.0,110430.0,0.04721]
[1756806699458,0.66333236,110440.0,110430.0,0.04721]
[1756806700259,0.66233236,110440.0,110430.0,0.04721]
[1756806700964,0.66333236,110440.0,110430.0,0.04721]
[1756806701161,0.66433236,110440.0,110430.0,0.04721]
[1756806704664,0.66433236,110440.0,110430.0,0.08276]
[1756806706770,0.66433236,110440.0,110430.0,0.37521591]
[1756806706955,0.66433236,110440.0,110430.0,0.08276]
[1756806707260,0.66433236,110440.0,110430.0,0.37521591]
[1756806707766,0.37187645,110440.0,110430.0,0.37521591]
[1756806707962,0.002,110440.0,110430.0,0.37521591]
[1756806708162,0.002,110440.0,110430.0,0.73601591]
[1756806709369,0.002,110440.0,110430.0,0.37521591]
[1756806710163,0.002,110440.0,110430.0,0.4400894]
[1756806718572,0.002,110440.0,110430.0,0.14763349]
[1756806718775,0.002,110440.0,110430.0,0.4400894]
[1756806720374,0.29445591,110440.0,110430.0,0.4400894]
[1756806721775,0.29445591,110440.0,110430.0,0.8008894]
[1756806721971,0.002,110440.0,110430.0,0.8008894]